fUSD/lending_fUSD_20240319
["ID","MTS","AMOUNT","RATE_DAILY","PERIOD"]
[319538885,1710834639709,-352.75,0.00037929,2]
[319538886,1710834639718,-352.75,0.00038064,2]
[319538887,1710834639727,-352.75,0.00038198,2]
[319538888,1710834639738,-232.0,0.00038312,2]
[319538889,1710834639747,-352.75,0.00038332,2]
[319538890,1710834639756,-352.75,0.00038467,2]
[319538891,1710834639766,-1166.07172791,0.00038557,7]
[319538892,1710834639775,-352.75,0.00038601,2]
[319538893,1710834639785,-171.97,0.00038642,2]
[319538894,1710834639794,-1166.07172791,0.00038684,7]
[319538895,1710834639804,-352.75,0.00038735,2]
[319538896,1710834639814,-223.17,0.00038765,10]
[319538897,1710834639823,-352.75,0.00038869,2]
[319538898,1710834639834,-541.33368708,0.00039,25]
[319538899,1710834639845,-1000.0,0.00039,120]
[319538900,1710834639855,-352.75,0.00039004,2]
[319538901,1710834639866,-1166.07172791,0.00039117,7]
[319538902,1710834639876,-2500.0,0.00039165,2]
[319538903,1710834639885,-805.0,0.0003983,5]
[319538904,1710834639895,-460.15630689,0.000399,2]
[319538905,1710834639909,-460.15630688,0.000399,2]
[319538906,1710834639919,-460.15630688,0.000399,2]
[319538907,1710834639929,-460.15630688,0.000399,2]
[319538908,1710834639938,-460.15630688,0.000399,2]
[319538909,1710834639948,-163.78467129,0.000399,2]
[319538910,1710834639958,-163.78467126,0.000399,2]
[319538911,1710834639967,-163.78467126,0.000399,2]
[319538912,1710834639976,-163.78467126,0.000399,2]
[319538913,1710834639988,-163.78467126,0.000399,2]
[319538914,1710834639998,-506.0,0.00040296,7]
[319538915,1710834640008,-193.82100952,0.00040733,15]
[319538916,1710834640017,-933.6848131,0.00040733,4]
[319538917,1710834640027,-151.96,0.00040971,2]
[319538918,1710834640037,-293.97,0.00041053,120]
[319538919,1710834640046,-183.0,0.00041096,2]
[319538920,1710834640056,-223.17,0.00041505,10]
[319538921,1710834640065,-35708.9683,0.00041759,2]
[319538922,1710834640075,-232.0,0.00041795,2]
[319538923,1710834640085,-163.78467126,0.00041946,4]
[319538924,1710834640094,-1166.07172791,0.00041985,30]
[319538925,1710834640103,-1000.0,0.00042,120]
[319538926,1710834640114,-1361.44941736,0.00042245,4]
[319538927,1710834640123,-6075.37716017,0.00042397,5]
[319538928,1710834640133,-1166.07172791,0.00042621,30]
[319538929,1710834640142,-460.15630688,0.000429,5]
[319538930,1710834640151,-158.33562322,0.00043009,11]
[319538931,1710834640161,-231.84206525,0.00043106,4]
[319538932,1710834640171,-1754.32004483,0.00043107,4]
[319538933,1710834640181,-286.68802756,0.00043107,4]
[319538934,1710834640191,-155.19582881,0.00043107,4]
[319538935,1710834640200,-155.31996516,0.00043107,4]
[319538937,1710834640210,-155.2869094,0.00043107,4]
[319538939,1710834640220,-1848.45899034,0.00043107,5]
[319538941,1710834640229,-352.87741248,0.00043107,4]
[319538943,1710834640241,-155.0,0.00043107,4]
[319538945,1710834640251,-615.82231635,0.00043107,2]
[319538947,1710834640260,-1092.23731202,0.00043107,4]
[319538949,1710834640270,-547.96077282,0.00043107,4]
[319538952,1710834640280,-155.25410917,0.00043108,2]
[319538954,1710834640289,-617.49788098,0.00043108,4]
[319538956,1710834640299,-3040.27810605,0.00043108,20]
[319538958,1710834640309,-158.47581293,0.00043108,4]
[319538960,1710834640318,-1589.15141543,0.00043108,4]
[319538962,1710834640328,-2500.0,0.00043108,2]
[319538964,1710834640338,-234.79419049,0.00043108,4]
[319538966,1710834640348,-1443.985,0.00043109,2]
[319538968,1710834640358,-1416.156,0.00043109,2]
[319538970,1710834640367,-181.554,0.00043109,2]
[319538972,1710834640376,-1623.0,0.00043109,2]
[319538974,1710834640386,-5685.454,0.00043109,2]
[319538976,1710834640395,-4776.783,0.00043109,2]
[319538978,1710834640405,-42878.0,0.00043109,2]
[319538980,1710834640414,-2428.0,0.00043109,2]
[319538983,1710834640423,-150.688,0.00043109,2]
[319538986,1710834640433,-150.0,0.00043109,2]
[319538989,1710834640443,-1047.774,0.00043109,2]
[319538991,1710834640452,-150.278,0.00043109,2]
[319538993,1710834640461,-184.92,0.00043562,2]
[319538995,1710834640470,-151.96,0.00044043,2]
[319538997,1710834640479,-165.15946793,0.00044112,30]
[319538999,1710834640491,-223.17,0.00044245,120]
[319539001,1710834640500,-1166.07172791,0.00044366,30]
[319539003,1710834640510,-163.65760231,0.00044375,30]
[319539005,1710834640520,-158.33562316,0.00044422,11]
[319539007,1710834640530,-293.97,0.00044785,120]
[319539009,1710834640539,-1166.07172791,0.00044829,30]
[319539011,1710834640549,-1000.0,0.00045,120]
[319539013,1710834640559,-1123.36,0.0004504,2]
[319539015,1710834640568,-715.0,0.00045126,30]
[319539017,1710834640577,-85136.2371,0.0004514,30]
[319539019,1710834640587,-163.78467126,0.00045184,7]
[319539021,1710834640597,-305.92104781,0.00045491,17]
[319539022,1710834640607,-715.0,0.00045591,30]
[319539023,1710834640616,-158.33562316,0.00045835,12]
[319539025,1710834640627,-460.15630688,0.000459,7]
[319539027,1710834640637,-715.0,0.00046056,30]
[319539029,1710834640646,-150.0,0.00046109,2]
[319539031,1710834640656,-1166.07172791,0.00046112,30]
[319539033,1710834640665,-263.62105663,0.00046521,30]
[319539035,1710834640675,-715.0,0.00046521,30]
[319539037,1710834640684,-1646.0,0.00046521,30]
[319539039,1710834640694,-580.0,0.00046521,30]
[319539041,1710834640704,-223.17,0.00046984,120]
[319539043,1710834640714,-715.0,0.00046987,30]
[319539045,1710834640724,-151.96,0.00047116,2]
[319539047,1710834640735,-155.89260426,0.00047178,30]
[319539049,1710834640746,-158.33562316,0.00047248,13]
[319539051,1710834640756,-1166.07172791,0.0004729,30]
[319539053,1710834640767,-715.0,0.00047452,30]
[319539055,1710834640777,-157.31447793,0.00047492,30]
[319539057,1710834640787,-439.45528241,0.00047697,30]
[319539059,1710834640796,-1166.07172791,0.0004773,30]
[319539062,1710834640806,-715.0,0.00047917,30]
[319539065,1710834640817,-163.78467126,0.00048423,10]
[319539069,1710834640827,-158.33562316,0.00048661,13]
[319539071,1710834640838,-460.15630688,0.000489,10]
[319539073,1710834640848,-768.69,0.00049,30]
[319539076,1710834640857,-768.7,0.00049,30]
[319539078,1710834640869,-160.91663668,0.00049,30]
[319539080,1710834640879,-6911.94349789,0.000495,2]
[319539082,1710834640889,-223.17,0.00049724,120]
[319539084,1710834640899,-543.45124,0.0004975,48]
[319539086,1710834640912,-640.25878854,0.000499,28]
[319539088,1710834640922,-451.67317902,0.000499,2]
[319539089,1710834640933,-596.96,0.00049945,120]
[319539092,1710834640944,-500.0,0.00049972,120]
[319539094,1710834640954,-5340.72252496,0.00049997,4]
[319539096,1710834640964,-594.4228767,0.00049997,2]
[319539098,1710834640973,-500.0,0.00049997,4]
[319539100,1710834640983,-775.4794766,0.00049997,2]
[319539102,1710834640997,-169.31062017,0.00049997,4]
[319539103,1710834641007,-200000.0,0.0005,50]
[319539105,1710834641016,-5655.57242943,0.0005,20]
[319539107,1710834641026,-15000.0,0.0005,120]
[319539109,1710834641035,-12509.66,0.0005,120]
[319539111,1710834641045,-7088.20416807,0.0005,120]
[319539113,1710834641055,-2580.0,0.0005,7]
[319539115,1710834641064,-6195.9441173,0.0005,120]
[319539118,1710834641074,-356.51,0.0005,2]
[319539120,1710834641084,-158.33562316,0.00050074,14]
[319539122,1710834641095,-150.80584846,0.00050085,60]
[319539124,1710834641105,-15000.0,0.00050125,120]
[319539126,1710834641115,-151.96,0.00050188,2]
[319539127,1710834641125,-1166.07172791,0.00050204,60]
[319539129,1710834641135,-431.86494651,0.00050246,120]
[319539131,1710834641146,-15000.0,0.0005025,120]
[319539133,1710834641156,-543.45124,0.0005037,51]
[319539135,1710834641166,-15000.0,0.00050375,120]
[319539137,1710834641176,-6229.75,0.000505,120]
[319539139,1710834641185,-500.0,0.00050589,30]
[319539141,1710834641195,-1166.07172791,0.00050737,60]
[319539143,1710834641204,-183.05364349,0.000509,42]
[319539145,1710834641214,-640.25878852,0.000509,29]
[319539147,1710834641223,-25015.99846481,0.00050997,2]
[319539149,1710834641232,-200000.0,0.00051,51]
[319539150,1710834641245,-168.0,0.00051,100]
[319539151,1710834641254,-543.45125,0.00051,54]
[319539152,1710834641263,-447.5483,0.00051133,120]
[319539154,1710834641273,-200.0,0.00051217,30]
[319539156,1710834641282,-1166.07172791,0.00051233,60]
[319539158,1710834641291,-158.33562316,0.00051487,14]
[319539160,1710834641300,-168.0,0.000515,101]
[319539162,1710834641310,-4027.3875,0.000516,120]
[319539164,1710834641319,-543.45124,0.0005162,57]
[319539166,1710834641328,-163.78467126,0.00051661,12]
[319539168,1710834641338,-10000.0,0.000517,117]
[319539170,1710834641347,-294.88893423,0.00051737,28]
[319539172,1710834641357,-160.66137674,0.00051737,51]
[319539175,1710834641370,-4684.8719455,0.000518,28]
[319539177,1710834641380,-200.0,0.00051845,30]
[319539179,1710834641388,-77156.4849,0.000519,2]
[319539180,1710834641396,-460.15630688,0.000519,13]
[319539182,1710834641405,-640.25878852,0.000519,31]
[319539184,1710834641414,-169.05793921,0.00051938,4]
[319539186,1710834641424,-3993.03393883,0.00051999,4]
[319539188,1710834641434,-510.0,0.00051999,120]
[319539191,1710834641444,-200000.0,0.00052,52]
[319539193,1710834641453,-151.0,0.00052,120]
[319539195,1710834641463,-385.21111111,0.00052,120]
[319539197,1710834641472,-169.43339483,0.00052,7]
[319539199,1710834641482,-494.08416543,0.00052,4]
[319539201,1710834641494,-169.43339483,0.00052,7]
[319539203,1710834641504,-155.0,0.00052,30]
[319539205,1710834641513,-168.0,0.00052,102]
[319539207,1710834641522,-1168.54230314,0.00052,120]
[319539211,1710834641551,-253.70482749,0.00052,120]
[319539213,1710834641562,-318.500005,0.00052,120]
[319539216,1710834641577,-259.25286437,0.00052,120]
[319539218,1710834641587,-390.74713563,0.00052055,14]
[319539220,1710834641599,-109.25286437,0.00052055,14]
[319539222,1710834641609,-4684.87194545,0.00052113,29]
[319539224,1710834641618,-543.45125,0.0005225,60]
[319539226,1710834641628,-510.0,0.00052273,120]
[319539228,1710834641638,-4684.87194545,0.00052426,29]
[319539230,1710834641647,-157.031916,0.00052448,72]
[319539232,1710834641657,-223.17,0.00052464,120]
[319539234,1710834641666,-200.0,0.00052472,30]
[319539236,1710834641675,-800.0,0.00052472,30]
[319539238,1710834641684,-200.0,0.00052472,30]
[319539240,1710834641694,-500.0,0.00052472,30]
[319539242,1710834641703,-168.0,0.000525,103]
[319539244,1710834641713,-151.0,0.00052521,120]
[319539246,1710834641722,-510.0,0.00052547,120]
[319539248,1710834641732,-385.21111111,0.00052548,120]
[319539250,1710834641746,-4684.87194545,0.00052739,30]
[319539252,1710834641755,-292.0,0.00052748,28]
[319539254,1710834641765,-510.0,0.00052821,120]
[319539256,1710834641774,-543.45124,0.0005287,63]
[319539258,1710834641784,-500.0,0.00052899,2]
[319539260,1710834641793,-218.223603,0.00052899,2]
[319539261,1710834641803,-279.87099032,0.00052899,11]
[319539262,1710834641813,-1779.29468745,0.00052899,2]
[319539264,1710834641822,-158.33562316,0.000529,14]
[319539266,1710834641832,-486.81547436,0.000529,94]
[319539268,1710834641841,-36720.35717908,0.00052996,2]
[319539270,1710834641855,-315.19373772,0.00052996,2]
[319539273,1710834641880,-200.0,0.00024799,2]
[319539275,1710834641890,-436.70254878,0.00052996,2]
[319539278,1710834641908,-4534.67246,0.00052996,2]
[319539280,1710834641925,-32433.99999999,0.00052996,2]
[319539281,1710834641937,-1180.00004,0.00052996,2]
[319539282,1710834641977,-4110.37,0.00052996,2]
[319539283,1710834642608,-10791.043981,0.00014431,2]
[319539284,1710834642618,-200.0,0.00024799,2]
[319539285,1710834642627,-200.0,0.00024799,2]
[319539286,1710834642636,-200.0,0.00024799,2]
[319539287,1710834642645,-200.0,0.00024799,2]
[319539288,1710834642655,-158.0,0.00024799,2]
[319539289,1710834642664,-8508.955823,0.00052996,2]
[319539290,1710834642676,-333.7,0.00052996,2]
[319539291,1710834642694,-3266.61103105,0.00052996,2]
[319539292,1710834642716,-64993.06610034,0.00052996,2]
[319539293,1710834642788,-640.74715966,0.00052996,2]
[319539294,1710834642845,-6430.1,0.00052996,2]
[319539295,1710834642857,-2015.94855758,0.00052996,2]
[319539296,1710834642870,-1052.07874163,0.00052996,2]
[319539297,1710834642884,-33155.48433965,0.00052996,2]
[319539298,1710834642894,-303.08119858,0.00052997,60]
[319539299,1710834642905,-3653.11207673,0.00052997,15]
[319539300,1710834642914,-308.50605593,0.00052997,3]
[319539301,1710834642924,-173.43869467,0.00052997,14]
[319539302,1710834642933,-1987.87913225,0.00052998,4]
[319539303,1710834642943,-321.01653903,0.00052998,4]
[319539304,1710834642952,-1842.94516454,0.00052998,120]
[319539305,1710834642962,-187.38826057,0.00052998,4]
[319539306,1710834642971,-16357.20424731,0.00052998,4]
[319539307,1710834642982,-184.70934746,0.00052998,20]
[319539308,1710834642995,-1454.8409802,0.00052998,120]
[319539309,1710834643004,-212.05807186,0.00052998,4]
[319539310,1710834643014,-518.71289967,0.00052998,2]
[319539311,1710834643023,-452.01870967,0.00052998,30]
[319539312,1710834643032,-145028.50428186,0.00052998,31]
[319539315,1710834643146,-630.04,0.00052998,31]
[319539317,1710834643176,-303.27304,0.00052998,31]
[319539318,1710834643188,-442.215,0.00052998,31]
[319539330,1710834644221,-155.13870308,0.00013411,2]
[319539331,1710834644231,-446.67253887,0.00024798,2]
[319539332,1710834644245,-659.55849175,0.00024798,2]
[319539333,1710834644260,-579.86455063,0.00024798,2]
[319539334,1710834644283,-895.88804481,0.00024798,2]
[319539335,1710834644295,-823.52658831,0.00024798,2]
[319539336,1710834644307,-158.90507021,0.00024798,2]
[319539337,1710834644316,-239.97506475,0.00024798,2]
[319539338,1710834644336,-133.6006821,0.00024798,2]
[319539339,1710834644346,-172.74416423,0.00024798,2]
[319539340,1710834644355,-375.86,0.00043097,30]
[319539341,1710834644365,-1137.34169992,0.000497,10]
[319539342,1710834644374,-263.664,0.0005096,30]
[319539343,1710834644383,-9524.09001562,0.00052998,31]
[319539344,1710834644395,-36585.84589937,0.00052998,31]
[319539345,1710834644407,-508.1055248,0.00052998,31]
[319539346,1710834644418,-855.78592654,0.00052998,31]
[319539347,1710834644430,-270.9,0.00052998,31]
[319539348,1710834644442,-868.39600224,0.00052998,31]
[319539349,1710834644454,-13739.87629893,0.00052998,31]
[319539350,1710834644465,-2378.62101966,0.00052998,31]
[319539351,1710834644477,-2875.94353848,0.00052998,31]
[319539352,1710834644493,-3529.27112192,0.00052998,31]
[319539353,1710834644505,-27247.15665615,0.00052998,31]
[319539354,1710834644516,-32531.13498983,0.00052998,31]
[319539355,1710834644529,-776.29019614,0.00052998,31]
[319539356,1710834645023,155.13927914,0.00012,2]
[319539366,1710834646388,-309.36898007,0.00014007,2]
[319539368,1710834646397,-702.23102993,0.0002,2]
[319539375,1710834646512,-1635.71274868,0.0002,2]
[319539376,1710834646522,-1405.94115628,0.00024798,2]
[319539377,1710834646531,-155.31643916,0.00024798,2]
[319539378,1710834646540,-214.9965848,0.00024798,2]
[319539379,1710834646550,-851.0,0.0003983,5]
[319539380,1710834646559,-251.29158396,0.00047482,2]
[319539381,1710834646567,-251.29158396,0.0004889,2]
[319539382,1710834646576,-251.29158396,0.0004949,7]
[319539383,1710834646586,-251.29158396,0.0004949,7]
[319539384,1710834646595,-154.0,0.00051699,60]
[319539385,1710834646604,-154.0,0.0005211,120]
[319539386,1710834646614,-154.0,0.0005252,120]
[319539387,1710834646623,-154.0,0.00052931,120]
[319539388,1710834646631,-7486.50239656,0.00052998,31]
[319539389,1710834646643,-431.96925012,0.00052998,31]
[319539390,1710834646655,-19041.96657256,0.00052998,31]
[319539391,1710834646667,-653.07767847,0.00052998,31]
[319539392,1710834646678,-355.44703938,0.00052998,31]
[319539393,1710834646697,-255.5202649,0.00052998,31]
[319539394,1710834646729,-251.29158396,0.0004974,7]
[319539395,1710834646738,-3138.10841604,0.00052998,31]
[319539396,1710834646764,-1188.71379233,0.00052998,31]
[319539397,1710834646776,-339.09854979,0.00052998,31]
[319539402,1710834647925,403.49870569,0.0001164,2]
[319539403,1710834654461,196.58941458,0.00012,2]
[319539405,1710834655703,324.2981715,0.00012,2]
[319539410,1710834692207,2526.1837613,0.00012,2]
[319539412,1710834694419,3539.01243606,0.0001,2]
[319539413,1710834699274,3340.47,0.00011,2]
[319539421,1710834739265,-440.7574352,0.00013997,2]
[319539422,1710834739288,-155.0,0.00013998,2]
[319539423,1710834739314,-1204.2425648,0.00013998,2]
[319539461,1710835185746,15000.0,0.0002322,90]
[319539462,1710835185934,179.74,0.00010972,2]
[319539463,1710835311662,18636.39,0.0002199,30]
[319539465,1710835668110,213.48,0.00010684,2]
[319539466,1710835686243,200.0,0.00012165,2]
[319539512,1710835831528,-328.1510037,0.00012444,2]
[319539513,1710835831537,-529.37904197,0.00012542,2]
[319539516,1710835831547,-424.19093922,0.00012543,2]
[319539518,1710835831557,-155.0,0.00012544,2]
[319539520,1710835831566,-250.0,0.00012545,2]
[319539522,1710835831575,-345.0,0.00012605,2]
[319539523,1710835831584,-893.27901511,0.00012611,2]
[319539527,1710835831596,-486.03098489,0.00012611,2]
[319539529,1710835831605,-150.0,0.00012618,2]
[319539532,1710835831614,-63.96901511,0.00012619,2]
[319539535,1710835831625,-1867.57091508,0.00012619,2]
[319539539,1710835831641,-521.45821047,0.00012619,2]
[319539541,1710835831652,-538.88,0.00012619,2]
[319539544,1710835831677,-959.142461,0.00012619,2]
[319539546,1710835831689,-1642.8049973,0.00012619,2]
[319539549,1710835831700,-18306.17440104,0.00012619,2]
[319539551,1710835831710,-377.25,0.00012619,2]
[319539553,1710835831719,-150.0,0.00012633,2]
[319539555,1710835831728,-315.7,0.00012648,2]
[319539557,1710835831737,-2132.5,0.00012675,2]
[319539558,1710835831746,-1460.43,0.00012675,2]
[319539560,1710835831755,-157.75,0.0001268,2]
[319539562,1710835831765,-28109.1223,0.00012692,2]
[319539564,1710835831774,-1101.67,0.00012695,2]
[319539566,1710835831783,-1332.27,0.00012711,2]
[319539568,1710835831793,-705.0,0.00012711,2]
[319539570,1710835831802,-2078.05,0.00012711,2]
[319539572,1710835831811,-694.98,0.00012711,2]
[319539574,1710835831821,-1000.0,0.00012891,2]
[319539576,1710835831831,-1000.0,0.00012891,2]
[319539578,1710835831841,-156.12,0.00012939,2]
[319539580,1710835831850,-213.48,0.00012948,2]
[319539581,1710835831860,-213.12521067,0.00013,2]
[319539582,1710835831869,-178.31,0.00013,2]
[319539583,1710835831879,-156.12,0.00013006,2]
[319539585,1710835831888,-156.12,0.00013074,2]
[319539587,1710835831898,-157.75,0.00013124,2]
[319539590,1710835831908,-156.12,0.00013141,2]
[319539593,1710835831918,-163.29808325,0.00013157,2]
[319539595,1710835831930,-156.12,0.00013209,2]
[319539596,1710835831939,-156.12,0.00013276,2]
[319539597,1710835831949,-156.12,0.00013344,2]
[319539598,1710835831961,-156.12,0.00013411,2]
[319539599,1710835831970,-1955.0,0.00013448,2]
[319539600,1710835831980,-1000.0,0.00013459,2]
[319539601,1710835831989,-3980.37,0.00013459,2]
[319539602,1710835831999,-156.12,0.00013478,2]
[319539603,1710835832009,-156.12,0.00013546,2]
[319539604,1710835832018,-178.31,0.00013548,2]
[319539605,1710835832028,-157.75,0.00013568,2]
[319539606,1710835832037,-156.12,0.00013613,2]
[319539607,1710835832046,-1029.403429,0.00013689,2]
[319539608,1710835832056,-200.0,0.00013699,2]
[319539609,1710835832065,-205.0,0.00013699,2]
[319539610,1710835832075,-250.0,0.00013699,2]
[319539611,1710835832084,-260.57,0.00013699,2]
[319539612,1710835832093,-7437.555,0.00013699,2]
[319539613,1710835832103,-171.82209806,0.00013799,2]
[319539614,1710835832113,-171.82209798,0.00013804,2]
[319539615,1710835832122,-171.82209798,0.0001381,2]
[319539616,1710835832132,-171.82209798,0.00013815,2]
[319539617,1710835832141,-171.82209798,0.0001382,2]
[319539618,1710835832151,-171.82209798,0.00013826,2]
[319539619,1710835832160,-171.82209798,0.00013831,2]
[319539620,1710835832170,-499.99,0.00013831,2]
[319539621,1710835832180,-260.57,0.00013836,2]
[319539622,1710835832190,-171.82209798,0.00013836,2]
[319539623,1710835832199,-171.82209798,0.00013842,2]
[319539624,1710835832208,-171.82209798,0.00013847,2]
[319539625,1710835832218,-171.82209798,0.00013852,2]
[319539626,1710835832227,-171.82209798,0.00013857,2]
[319539627,1710835832236,-171.82209798,0.00013863,2]
[319539628,1710835832245,-171.82209798,0.00013868,2]
[319539629,1710835832255,-171.82209798,0.00013873,2]
[319539630,1710835832266,-171.82209798,0.00013879,2]
[319539631,1710835832277,-210.0,0.00013879,2]
[319539632,1710835832286,-171.82209798,0.00013884,2]
[319539633,1710835832297,-171.82209798,0.00013889,2]
[319539634,1710835832307,-171.82209798,0.00013895,2]
[319539635,1710835832316,-3445.9209,0.00013899,2]
[319539636,1710835832326,-930.07,0.00013899,2]
[319539637,1710835832337,-359.7388,0.00013899,2]
[319539638,1710835832346,-1000.0,0.00013899,2]
[319539639,1710835832356,-2500.0,0.00013899,2]
[319539640,1710835832365,-1000.0,0.000139,2]
[319539641,1710835832374,-171.82209798,0.000139,2]
[319539642,1710835832384,-3593.58593564,0.000139,2]
[319539643,1710835832393,-189.5820533,0.000139,2]
[319539644,1710835832403,-155.01331692,0.000139,2]
[319539645,1710835832413,-180.14502318,0.000139,2]
[319539646,1710835832422,-2046.22322583,0.000139,2]
[319539647,1710835832434,-260.57,0.00013973,2]
[319539648,1710835832444,-192.89474936,0.0001399,2]
[319539649,1710835832453,-2087.45558654,0.00013996,2]
[319539650,1710835832463,-218.223603,0.00013996,2]
[319539651,1710835832473,-227.69503828,0.00013996,2]
[319539652,1710835832483,-155.18562175,0.00013997,2]
[319539653,1710835832492,-155.21746796,0.00013997,2]
[319539654,1710835832502,-155.36734344,0.00013997,2]
[319539655,1710835832513,-4098.31607305,0.00013997,2]
[319539656,1710835832523,-358.9869636,0.00013997,2]
[319539657,1710835832532,-155.73419435,0.00013997,2]
[319539658,1710835832542,-270.68703798,0.00013997,2]
[319539659,1710835832552,-3687.86681399,0.00013998,2]
[319539660,1710835832562,-156.02143369,0.00013999,2]
[319539661,1710835832571,-137907.81327397,0.00013999,2]
[319539662,1710835832581,-278.95530436,0.00013999,2]
[319539663,1710835832590,-946492.32507056,0.00014,2]
[319539664,1710835832603,-530.38881895,0.00014,2]
[319539665,1710835832616,-28375.4615763,0.00014,2]
[319539666,1710835832628,-7787.08600805,0.00014,2]
[319539667,1710835832699,-309.97,0.00014,2]
[319539668,1710835832711,-748.42002,0.00014,2]
[319539669,1710835832726,-9702.45,0.00014,2]
[319539670,1710835832740,-33354.33368298,0.00014,2]
[319539671,1710835832771,-932.24484287,0.00014,2]
[319539672,1710835832784,-422.51704536,0.00014,2]
[319539673,1710835832802,-495.48279711,0.00014,2]
[319539674,1710835832823,-14829.87544267,0.00014,2]
[319539675,1710835832835,-64587.12450364,0.00014,2]
[319539676,1710835832847,-394.55446328,0.00014,2]
[319539677,1710835832859,-413.05455694,0.00014,2]
[319539678,1710835832871,-1123.48233042,0.00014,2]
[319539725,1710835837581,-3232.0832666,0.00014,2]
[319539728,1710835837593,-2036.475,0.00014,2]
[319539730,1710835837605,-801.1129955,0.00014,2]
[319539736,1710835837654,-28185.65124791,0.00014,2]
[319539739,1710835837668,-941.43031319,0.00014,2]
[319539741,1710835837681,-2852.47859617,0.00014,2]
[319539746,1710835837724,-995234.27963503,0.00014,2]
[319539748,1710835837735,-290236.28131386,0.00014,2]
[319539750,1710835837746,-178.31,0.00014096,2]
[319539752,1710835837755,-260.57,0.0001411,2]
[319539754,1710835837766,-315.7,0.00014229,2]
[319539755,1710835837775,-260.57,0.00014247,2]
[319539756,1710835837785,-260.57,0.00014384,2]
[319539757,1710835837794,-260.57,0.00014521,2]
[319539758,1710835837804,-178.31,0.00014644,2]
[319539759,1710835837814,-260.57,0.00014658,2]
[319539760,1710835837824,-260.57,0.00014795,2]
[319539761,1710835837833,-260.57,0.00014932,2]
[319539762,1710835837843,-259.13544903,0.00015,2]
[319539763,1710835837853,-153.80071518,0.00015,2]
[319539764,1710835837863,-552158.77660522,0.00015,2]
[319539765,1710835837875,-3222.02913399,0.00015,2]
[319539766,1710835837886,-703.93183724,0.00015,2]
[319539767,1710835838006,-1792.04521374,0.00015,2]
[319539770,1710835838018,-12711.46860988,0.00015,2]
[319539771,1710835838027,-187.66,0.00015068,2]
[319539773,1710835838037,-260.57,0.00015069,2]
[319539775,1710835838046,-1000.0,0.00015141,2]
[319539777,1710835838055,-178.31,0.00015192,2]
[319539779,1710835838064,-260.57,0.00015206,2]
[319539781,1710835838073,-213.48,0.00015212,2]
[319539783,1710835838083,-21473.95935904,0.0001527,2]
[319539785,1710835838092,-260.57,0.00015343,2]
[319539787,1710835838102,-15504.53978176,0.000154,2]
[319539789,1710835838111,-1332.27,0.00015451,2]
[319539791,1710835838121,-260.57,0.0001548,2]
[319539793,1710835838130,-260.57,0.00015617,2]
[319539795,1710835838140,-164.61,0.00015653,2]
[319539797,1710835838150,-178.31,0.0001574,2]
[319539798,1710835838159,-260.57,0.00015754,2]
[319539799,1710835838169,-315.7,0.0001581,2]
[319539800,1710835838182,-260.57,0.00015891,2]
[319539801,1710835838193,-260.57,0.00016028,2]
[319539802,1710835838205,-520.34,0.00016165,2]
[319539803,1710835838217,-356.46,0.00016288,2]
[319539804,1710835838230,-187.66,0.00016438,2]
[319539805,1710835838255,-1216.22344563,0.000165,2]
[319539806,1710835838271,-1000.0,0.00016824,2]
[319539807,1710835838284,-304.0796462,0.00017,2]
[319539808,1710835838295,-4570.3691575,0.00017,2]
[319539809,1710835838309,-374.36402075,0.00017,2]
[319539810,1710835838436,-945.39682175,0.00017,2]
[319539811,1710835838446,-315.7,0.00017391,2]
[319539812,1710835838456,-213.48,0.00017476,2]
[319539813,1710835838466,-14.28647741,0.00017613,2]
[319539814,1710835838477,-1369.29431586,0.00017613,2]